bitfinex/quotes_BTCUSD_20240908
["timestamp","ask_amount","ask_price","bid_price","bid_amount"]
[1725828449628,0.000814,54401.0,54400.0,0.441175]
[1725828450077,0.000814,54401.0,54400.0,0.735292]
[1725828450947,0.000814,54401.0,54400.0,0.748292]
[1725828451181,0.000814,54401.0,54400.0,0.747292]
[1725828451457,0.000814,54401.0,54400.0,0.760292]
[1725828451646,0.000814,54401.0,54400.0,0.747292]
[1725828452119,0.000814,54401.0,54400.0,0.760292]
[1725828452571,0.000814,54401.0,54400.0,0.172058]
[1725828453078,0.05580936,54401.0,54400.0,0.172058]
[1725828453598,0.000814,54401.0,54400.0,0.466175]
[1725828453811,0.441982,54401.0,54400.0,0.025]
[1725828454497,0.442982,54401.0,54400.0,0.025]
[1725828454726,0.55296651,54401.0,54400.0,0.025]
[1725828454953,0.84609472,54401.0,54400.0,0.025]
[1725828455174,0.84509472,54401.0,54400.0,0.025]
[1725828455390,0.441982,54401.0,54400.0,0.025]
[1725828455632,0.84587732,54401.0,54400.0,0.025]
[1725828455870,0.441982,54401.0,54400.0,0.025]
[1725828456109,0.95622956,54401.0,54400.0,0.025]
[1725828456353,0.441982,54401.0,54400.0,0.025]
[1725828456592,0.84697032,54401.0,54400.0,0.025]
[1725828456797,0.95704667,54401.0,54400.0,0.025]
[1725828457009,0.95804667,54401.0,54400.0,0.025]
[1725828457839,0.95804667,54401.0,54400.0,0.026628]
[1725828458477,0.84797032,54401.0,54400.0,0.026628]
[1725828458705,0.98566695,54401.0,54400.0,0.026628]
[1725828459348,0.84797032,54401.0,54400.0,0.026628]
[1725828460730,0.98569354,54401.0,54400.0,0.026628]
[1725828460941,0.98569675,54401.0,54400.0,0.026628]
[1725828462942,0.84797032,54401.0,54400.0,0.026628]
[1725828468576,0.84678991,54401.0,54400.0,0.026628]
[1725828472333,0.87311136,54401.0,54400.0,0.026628]
[1725828473704,0.87348317,54401.0,54400.0,0.026628]
[1725828475188,0.84716172,54401.0,54400.0,0.026628]
[1725828476097,0.84716172,54401.0,54400.0,0.106828]
[1725828476098,0.84616172,54401.0,54400.0,0.106828]
[1725828476306,0.84616172,54401.0,54400.0,0.1273136]
[1725828477219,0.84616172,54401.0,54400.0,0.106828]
[1725828477857,0.84616172,54401.0,54400.0,0.086828]
[1725828478524,0.84552015,54401.0,54400.0,0.086828]
[1725828480091,0.84552015,54401.0,54400.0,0.006628]
[1725828480092,0.84652015,54401.0,54400.0,0.006628]
[1725828481230,0.84552015,54401.0,54400.0,0.006628]
[1725828482461,0.84652015,54401.0,54400.0,0.006628]
[1725828484241,0.84552015,54401.0,54400.0,0.006628]
[1725828487923,1.0110127,54401.0,54400.0,0.006628]
[1725828492095,1.00971916,54401.0,54400.0,0.006628]
[1725828494085,0.71560716,54401.0,54400.0,0.006628]
[1725828497132,0.71552196,54401.0,54400.0,0.006628]
[1725828497840,0.56846596,54401.0,54400.0,0.086828]
[1725828498066,0.56846596,54401.0,54400.0,1.05430792]
[1725828498067,0.402895,54401.0,54400.0,1.05430792]
[1725828498300,0.54086906,54401.0,54400.0,1.34842492]
[1725828498732,0.13878806,54401.0,54400.0,1.34842492]
[1725828498963,0.54086906,54401.0,54400.0,1.34842492]
[1725828499174,0.13878806,54401.0,54400.0,1.34842492]
[1725828499405,0.402895,54401.0,54400.0,1.34842492]
[1725828499644,0.000814,54401.0,54400.0,1.34842492]
[1725828500086,0.402895,54401.0,54400.0,1.34842492]
[1725828500320,0.51322819,54401.0,54400.0,1.34842492]
[1725828500558,0.402895,54401.0,54400.0,1.31575282]
[1725828500795,0.000814,54401.0,54400.0,1.31575282]
[1725828501026,0.402895,54401.0,54400.0,1.31575282]
[1725828501251,0.51321477,54401.0,54400.0,1.31575282]
[1725828501919,0.51481478,54401.0,54400.0,1.31575282]
[1725828502340,0.51481478,54401.0,54400.0,1.31675282]
[1725828502761,0.08354579,54402.0,54401.0,0.73528]
[1725828502968,0.08354579,54402.0,54401.0,0.81548]
[1725828503198,0.000815,54402.0,54401.0,0.84146779]
[1725828504320,0.05596322,54402.0,54401.0,0.85246779]
[1725828505433,0.05696322,54402.0,54401.0,0.86246779]
[1725828505646,0.05695841,54402.0,54401.0,0.86246779]
[1725828506105,0.001815,54402.0,54401.0,0.86246779]
[1725828507002,0.001815,54402.0,54401.0,0.86346779]
[1725828507215,0.001815,54402.0,54401.0,0.86246779]
[1725828508076,0.001815,54402.0,54401.0,0.86346779]
[1725828508288,0.001815,54402.0,54401.0,0.86246779]
[1725828512715,0.0569426,54402.0,54401.0,0.86246779]
[1725828515707,0.0569426,54402.0,54401.0,0.542368]
[1725828515941,0.001815,54402.0,54401.0,0.542368]
[1725828516674,0.001815,54402.0,54401.0,0.543998]
[1725828519455,0.001815,54402.0,54401.0,0.463798]
[1725828520532,0.001815,54402.0,54401.0,0.02263]
[1725828520836,0.621974,54402.0,54401.0,0.02263]
[1725828521054,0.80122166,54402.0,54401.0,0.02263]
[1725828521978,0.69096646,54402.0,54401.0,0.02263]
[1725828522188,0.80116679,54402.0,54401.0,0.02263]
[1725828522400,0.69096646,54402.0,54401.0,0.02263]
[1725828523072,0.82878546,54402.0,54401.0,0.02263]
[1725828523290,0.69096646,54402.0,54401.0,0.02263]
[1725828524418,0.82878546,54402.0,54401.0,0.02263]
[1725828525524,0.98607246,54402.0,54401.0,0.02263]
[1725828525781,1.28017846,54402.0,54401.0,0.02263]
[1725828526925,1.27903035,54402.0,54401.0,0.02263]
[1725828528663,0.98492435,54402.0,54401.0,0.02263]
[1725828528891,0.88182435,54402.0,54401.0,0.02263]
[1725828529336,0.80592435,54402.0,54401.0,0.02263]
[1725828529568,0.80492435,54402.0,54401.0,0.02263]
[1725828536871,0.80580277,54402.0,54401.0,0.02263]
[1725828540998,0.80536167,54402.0,54401.0,0.02263]
[1725828542299,0.51125567,54402.0,54401.0,0.02263]
[1725828542736,0.36420267,54402.0,54401.0,0.02263]
[1725828543158,0.36420267,54402.0,54401.0,0.2725478]
[1725828543443,0.5020125,54402.0,54401.0,0.3696478]
[1725828543698,0.36420267,54402.0,54401.0,0.6637598]
[1725828543912,0.08450309,54402.0,54401.0,0.6637598]
[1725828545253,0.001815,54402.0,54401.0,0.6637598]
[1725828545486,0.08450251,54402.0,54401.0,0.6637598]
[1725828545962,0.05512491,54403.0,54402.0,0.147051]
[1725828546205,0.08268736,54404.0,54402.0,0.24300148]
[1725828546432,0.05512413,54403.0,54402.0,0.24300148]
[1725828547307,0.05612413,54403.0,54402.0,0.25200148]
[1725828547587,0.05612413,54403.0,54402.0,0.26100148]
[1725828547795,0.05612413,54403.0,54402.0,0.25200148]
[1725828548176,0.05612413,54403.0,54402.0,0.26200148]
[1725828548558,0.001,54403.0,54402.0,0.26200148]
[1725828548758,0.08268538,54407.0,54402.0,0.26200148]
[1725828548960,0.08268538,54407.0,54403.0,0.04220169]
[1725828549166,0.22972638,54407.0,54403.0,0.04220169]
[1725828549516,0.22972638,54407.0,54403.0,0.18925169]
[1725828550647,0.22972638,54407.0,54403.0,0.19425169]
[1725828550868,0.22972638,54407.0,54404.0,0.06266301]
[1725828551081,0.25854923,54407.0,54404.0,0.06266301]
[1725828552021,0.25854923,54407.0,54403.0,0.14705]
[1725828552244,0.1,54406.0,54404.0,0.005]
[1725828552894,0.11150823,54407.0,54404.0,0.152047]
[1725828553301,0.11150823,54407.0,54404.0,0.157047]
[1725828553516,0.11150823,54407.0,54404.0,0.152047]
[1725828553738,0.11150823,54407.0,54405.0,0.05471052]
[1725828553970,0.08271571,54408.0,54405.0,0.05471052]
[1725828554403,0.08271571,54407.0,54405.0,0.05471052]
[1725828554609,0.1,54407.0,54405.0,0.05471052]
[1725828555025,0.1,54407.0,54405.0,0.05971052]
[1725828555255,0.1,54407.0,54406.0,0.0813]
[1725828556520,0.1,54407.0,54406.0,0.0853]
[1725828557518,0.1,54407.0,54406.0,0.0903]
[1725828557750,0.18271432,54407.0,54406.0,0.0903]
[1725828558153,0.1,54407.0,54406.0,0.0903]
[1725828558778,0.18271432,54407.0,54406.0,0.0903]
[1725828562755,0.21153676,54407.0,54406.0,0.0903]
[1725828564100,0.42357948,54407.0,54406.0,0.0903]
[1725828564307,0.42357948,54407.0,54406.0,0.09193]
[1725828565901,0.42320967,54407.0,54406.0,0.09193]
[1725828567241,0.42320967,54407.0,54406.0,0.01063]
[1725828567715,0.39438723,54407.0,54406.0,0.01063]
[1725828568165,0.54142623,54407.0,54406.0,0.01063]
[1725828573826,0.39438723,54407.0,54406.0,0.01063]
[1725828574016,0.54142623,54407.0,54406.0,0.01063]
[1725828574295,0.67928237,54407.0,54406.0,0.01063]
[1725828575187,0.54142623,54407.0,54406.0,0.01063]
[1725828575390,0.67928237,54407.0,54406.0,0.01063]
[1725828576254,0.65174816,54407.0,54406.0,0.01063]
[1725828577754,0.54142623,54407.0,54406.0,0.01063]
[1725828578806,0.39438723,54407.0,54406.0,0.01063]
[1725828580177,0.53224337,54407.0,54406.0,0.01063]
[1725828580599,0.39438723,54407.0,54406.0,0.01063]
[1725828581299,0.53224337,54407.0,54406.0,0.01063]
[1725828581517,0.39438723,54407.0,54406.0,0.01063]
[1725828585558,0.39121177,54407.0,54406.0,0.01063]
[1725828587952,0.53825077,54407.0,54406.0,0.01063]
[1725828600480,1.29796149,54407.0,54406.0,0.01063]
[1725828600953,0.39086449,54407.0,54406.0,0.01063]
[1725828601180,0.39086449,54407.0,54406.0,0.634157]
[1725828601181,0.29086449,54407.0,54406.0,0.634157]
[1725828601399,0.42891752,54409.0,54408.0,0.441111]
[1725828601625,0.42891752,54409.0,54408.0,0.0814]
[1725828601626,0.13805303,54409.0,54408.0,0.0814]
[1725828601852,0.29555897,54410.0,54408.0,0.0814]
[1725828602073,0.29474397,54409.0,54408.0,0.0814]
[1725828604033,0.29474397,54409.0,54408.0,0.0874]
[1725828604234,0.29474397,54409.0,54408.0,0.0934]
[1725828604460,0.29474397,54409.0,54408.0,0.0874]
[1725828604741,0.29474397,54409.0,54408.0,0.0814]
[1725828604949,0.29474397,54409.0,54408.0,0.0954]
[1725828604950,0.29574397,54409.0,54408.0,0.0954]
[1725828608180,0.03778431,54409.0,54408.0,0.0954]
[1725828608414,0.11141818,54409.0,54408.0,0.0954]
[1725828609101,0.001,54409.0,54408.0,0.0954]
[1725828610010,0.001,54409.0,54408.0,0.0884]
[1725828610219,0.25826518,54410.0,54408.0,0.0884]
[1725828610432,0.001,54409.0,54408.0,0.0964]
[1725828610645,0.001,54409.0,54408.0,0.0894]
[1725828610895,0.001,54409.0,54408.0,0.0984]
[1725828611162,0.25826518,54410.0,54408.0,0.0814]
[1725828611374,0.01950889,54411.0,54408.0,0.0814]
[1725828611603,0.147032,54410.0,54408.0,0.0884]
[1725828611833,0.147032,54410.0,54408.0,0.0814]
[1725828612491,0.147032,54410.0,54408.0,0.10801171]
[1725828613144,0.147847,54410.0,54408.0,0.10801171]
[1725828613380,0.147034,54409.0,54408.0,0.009]
[1725828613609,0.25743693,54409.0,54408.0,0.007]
[1725828613835,0.25743693,54409.0,54408.0,0.014]
[1725828614042,0.147034,54409.0,54408.0,0.014]
[1725828614304,0.25743693,54409.0,54408.0,0.007]
[1725828614757,0.148034,54409.0,54408.0,0.008]
[1725828614975,0.25843693,54409.0,54408.0,0.017]
[1725828615190,0.17685542,54409.0,54408.0,0.017]
[1725828615633,0.47092342,54409.0,54408.0,0.017]
[1725828615855,1.46898158,54409.0,54408.0,0.017]
[1725828616071,1.33095942,54409.0,54408.0,0.017]
[1725828619409,1.35851299,54409.0,54408.0,0.017]
[1725828621493,1.52406957,54409.0,54408.0,0.017]
[1725828622127,1.35851299,54409.0,54408.0,0.017]
[1725828623294,1.60284947,54409.0,54408.0,0.017]
[1725828625986,1.60226712,54409.0,54408.0,0.017]
[1725828628670,1.60244337,54409.0,54408.0,0.017]
[1725828629120,1.60247671,54409.0,54408.0,0.017]
[1725828633680,1.60122411,54409.0,54408.0,0.017]
[1725828635665,1.42932411,54409.0,54408.0,0.017]
[1725828636782,1.42932411,54409.0,54408.0,0.01863]
[1725828642448,1.55413502,54409.0,54408.0,0.01863]
[1725828643710,1.55508514,54409.0,54408.0,0.01863]
[1725828648772,1.55518665,54409.0,54408.0,0.01863]
[1725828649001,1.55517471,54409.0,54408.0,0.01863]
[1725828652619,1.41731554,54409.0,54408.0,0.01863]
[1725828652847,1.44613967,54409.0,54408.0,0.01863]
[1725828653736,1.44525297,54409.0,54408.0,0.01863]
[1725828657715,1.44525297,54409.0,54408.0,0.09513]
[1725828658629,1.44658227,54409.0,54408.0,0.09513]
[1725828661467,1.61292781,54409.0,54408.0,0.09513]
[1725828662031,1.61352414,54409.0,54408.0,0.09513]
[1725828664702,1.44791011,54409.0,54408.0,0.09513]
[1725828665144,1.61352414,54409.0,54408.0,0.09513]
[1725828665786,1.44791011,54409.0,54408.0,0.09513]
[1725828667050,1.4483256,54409.0,54408.0,0.09513]
[1725828670454,1.1542576,54409.0,54408.0,0.09513]
[1725828671397,1.31986239,54409.0,54408.0,0.01863]
[1725828672072,1.32001627,54409.0,54408.0,0.01863]
[1725828673027,1.61408427,54409.0,54408.0,0.01863]
[1725828673274,1.92831855,54409.0,54408.0,0.01863]
[1725828673503,1.876394,54409.0,54408.0,0.01863]
[1725828673733,1.96490982,54409.0,54408.0,0.01863]
[1725828673956,1.96490982,54409.0,54408.0,0.01063]
[1725828674199,1.96590982,54409.0,54408.0,0.01063]
[1725828674438,1.96590982,54409.0,54408.0,0.00163]
[1725828674623,1.96690982,54409.0,54408.0,0.00163]
[1725828675069,1.96890982,54409.0,54408.0,0.00163]
[1725828676818,1.9622866,54409.0,54408.0,0.00163]
[1725828677739,1.61925411,54409.0,54408.0,0.00163]
[1725828681721,1.61884972,54409.0,54408.0,0.00163]
[1725828686147,1.61874867,54409.0,54408.0,0.00163]
[1725828686843,1.37716216,54409.0,54408.0,0.00163]
[1725828687028,1.61852439,54409.0,54408.0,0.00163]
[1725828687723,1.94316501,54409.0,54408.0,0.00163]
[1725828687954,1.77864919,54409.0,54408.0,0.07963]
[1725828688176,1.68497565,54409.0,54408.0,0.07963]
[1725828688384,1.68497313,54409.0,54408.0,0.07963]
[1725828690802,1.59645731,54409.0,54408.0,0.07963]
[1725828691024,1.43100857,54409.0,54408.0,0.07963]
[1725828691663,1.42900857,54409.0,54408.0,0.07963]
[1725828692137,1.43100857,54409.0,54408.0,0.07963]
[1725828692572,1.42900857,54409.0,54408.0,0.07963]
[1725828692792,1.42700857,54409.0,54408.0,0.07963]
[1725828693009,1.42900857,54409.0,54408.0,0.07963]
[1725828693496,1.42700857,54409.0,54408.0,0.07963]
[1725828693730,1.42800857,54409.0,54408.0,0.07963]
[1725828693956,1.42700857,54409.0,54408.0,0.07963]
[1725828694168,1.42800857,54409.0,54408.0,0.07963]
[1725828695440,1.42700857,54409.0,54408.0,0.07963]
[1725828695903,1.42800857,54409.0,54408.0,0.07963]
[1725828696788,1.42728593,54409.0,54408.0,0.07963]
[1725828698633,1.42628593,54409.0,54408.0,0.07963]
[1725828699062,1.13221793,54409.0,54408.0,0.07963]
[1725828700934,0.4081758,54409.0,54408.0,0.326267]
[1725828701147,0.000815,54411.0,54410.0,0.188]
[1725828701382,0.13789708,54417.0,54410.0,0.188]
[1725828701383,0.13789708,54417.0,54416.0,0.745077]
[1725828701612,0.08274178,54422.0,54420.0,0.619013]
[1725828701854,0.08355178,54425.0,54420.0,1.29554682]
[1725828702081,0.00081,54425.0,54420.0,1.00153782]
[1725828702964,0.001815,54421.0,54420.0,1.01553782]
[1725828703191,0.001815,54421.0,54420.0,1.1181916]
[1725828703534,0.001815,54421.0,54420.0,1.1321916]
[1725828703622,0.000815,54421.0,54420.0,1.1041916]
[1725828703830,0.001815,54421.0,54420.0,1.1181916]
[1725828704044,0.001815,54421.0,54420.0,1.1321916]
[1725828705094,0.000815,54421.0,54420.0,1.1181916]
[1725828705331,0.001815,54421.0,54420.0,1.1181916]
[1725828705762,0.000815,54421.0,54420.0,1.1041916]
[1725828706216,0.001815,54421.0,54420.0,1.1321916]
[1725828706417,0.001815,54421.0,54420.0,1.4222006]
[1725828706635,0.000815,54421.0,54420.0,1.4082006]
[1725828706862,0.000815,54421.0,54420.0,1.4222006]
[1725828707093,0.001815,54421.0,54420.0,1.4362006]
[1725828707302,0.001815,54421.0,54420.0,1.4372006]
[1725828708181,0.000815,54421.0,54420.0,1.4232006]
[1725828708641,0.001815,54421.0,54420.0,1.4232006]
[1725828708862,0.002815,54421.0,54420.0,1.4372006]
[1725828709078,0.001815,54421.0,54420.0,1.4232006]
[1725828709292,0.001815,54421.0,54420.0,1.7172096]
[1725828709521,0.002815,54421.0,54420.0,1.4572006]
[1725828709741,0.001815,54421.0,54420.0,1.4432006]
[1725828710003,0.000815,54421.0,54420.0,1.4292006]
[1725828710230,0.002815,54421.0,54420.0,1.4572006]
[1725828710433,0.002815,54421.0,54420.0,1.4432006]
[1725828710434,0.001815,54421.0,54420.0,1.4432006]
[1725828711345,0.000815,54421.0,54420.0,1.4292006]
[1725828711801,0.002815,54421.0,54420.0,1.4572006]
[1725828712029,0.002815,54421.0,54420.0,1.7512096]
[1725828712274,0.000815,54421.0,54420.0,1.7232096]
[1725828712540,0.001815,54421.0,54420.0,1.7372096]
[1725828712776,0.001815,54421.0,54420.0,1.7502096]
[1725828712777,0.002815,54421.0,54420.0,1.7502096]
[1725828712999,0.000815,54421.0,54420.0,1.7232096]
[1725828713220,0.001815,54421.0,54420.0,1.7372096]
[1725828713447,0.001815,54421.0,54420.0,1.7362096]
[1725828713674,0.002815,54421.0,54420.0,1.7512096]
[1725828714587,0.001815,54421.0,54420.0,1.7382096]
[1725828715058,0.001815,54421.0,54420.0,1.7372096]
[1725828715507,0.002815,54421.0,54420.0,1.7512096]
[1725828715764,0.001815,54421.0,54420.0,1.7372096]
[1725828715987,0.002815,54421.0,54420.0,1.7512096]
[1725828721229,0.002815,54421.0,54420.0,1.36668478]
[1725828721443,0.002815,54421.0,54420.0,1.4552006]
[1725828724319,0.002815,54421.0,54420.0,0.468013]
[1725828724563,0.002815,54421.0,54420.0,0.027]
[1725828724784,0.737825,54421.0,54420.0,0.027]
[1725828724991,0.737825,54421.0,54420.0,0.014]
[1725828724992,0.442821,54421.0,54420.0,0.014]
[1725828725195,0.147008,54419.0,54414.0,0.14702]
[1725828725841,0.147008,54419.0,54415.0,0.1922871]
[1725828726269,0.245419,54421.0,54415.0,0.1922871]
[1725828726493,0.147005,54420.0,54415.0,0.1922871]
[1725828727724,0.001,54419.0,54415.0,0.1922871]
[1725828727932,0.002,54419.0,54415.0,0.1922871]
[1725828728090,0.098415,54421.0,54416.0,0.29531521]
[1725828728091,0.147818,54421.0,54416.0,0.29531521]
[1725828728294,0.001,54420.0,54416.0,0.29531521]
[1725828728832,0.147818,54421.0,54416.0,0.29531521]
[1725828729043,0.001,54419.0,54416.0,0.29531521]
[1725828729251,0.147818,54421.0,54416.0,0.29531521]
[1725828729462,0.001,54420.0,54417.0,0.03053152]
[1725828729790,0.002,54420.0,54417.0,0.03053152]
[1725828731074,0.147818,54421.0,54417.0,0.03053152]
[1725828731284,0.001,54419.0,54417.0,0.03053152]
[1725828731540,0.002,54419.0,54417.0,0.03053152]
[1725828731772,0.147818,54421.0,54418.0,0.03458467]
[1725828731986,0.001,54420.0,54418.0,0.03458467]
[1725828732210,0.002,54420.0,54418.0,0.03458467]
[1725828732470,0.001,54420.0,54418.0,0.03458467]
[1725828732686,0.001,54419.0,54418.0,0.03458467]
[1725828732975,0.000815,54421.0,54420.0,0.441013]
[1725828733233,0.000815,54421.0,54420.0,0.82952309]
[1725828733462,0.000815,54421.0,54420.0,1.12353209]
[1725828734127,0.000815,54421.0,54420.0,1.13153209]
[1725828734378,0.000815,54421.0,54420.0,1.38867845]
[1725828734640,0.000815,54421.0,54420.0,1.46337845]
[1725828734886,0.001815,54421.0,54420.0,1.47737845]
[1725828735105,0.001815,54421.0,54420.0,1.48337845]
[1725828735106,0.000815,54421.0,54420.0,1.48337845]
[1725828735340,0.000815,54421.0,54420.0,1.49737845]
[1725828735579,0.002815,54421.0,54420.0,1.50837845]
[1725828735799,0.002815,54421.0,54420.0,1.49437845]
[1725828736031,0.002815,54421.0,54420.0,1.49737845]
[1725828736741,0.002815,54421.0,54420.0,1.79138745]
[1725828737208,0.000815,54421.0,54420.0,1.77738745]
[1725828737457,0.000815,54421.0,54420.0,1.79138745]
[1725828737713,0.000815,54421.0,54420.0,1.80538745]
[1725828738447,0.000815,54421.0,54420.0,1.79138745]
[1725828738681,0.000815,54421.0,54420.0,1.80538745]
[1725828738920,0.000815,54421.0,54420.0,1.79138745]
[1725828740823,0.001815,54421.0,54420.0,1.80538745]
[1725828741532,0.00081,54430.0,54428.0,0.178983]
[1725828741757,0.00081,54430.0,54428.0,1.18995646]
[1725828741999,0.00081,54430.0,54428.0,1.48392246]
[1725828742692,0.00081,54430.0,54428.0,1.48192246]
[1725828743621,0.00081,54430.0,54428.0,1.48392246]
[1725828744090,0.00181,54429.0,54428.0,1.49792246]
[1725828744535,0.00181,54429.0,54428.0,1.51192246]
[1725828745254,0.00181,54429.0,54428.0,1.802215]
[1725828745480,0.000815,54438.0,54437.0,0.34270436]
[1725828745707,0.000815,54438.0,54437.0,1.7251428]
[1725828747796,0.000815,54438.0,54437.0,1.7391428]
[1725828748031,0.000815,54438.0,54437.0,1.7551428]
[1725828751296,0.000815,54438.0,54437.0,1.8531428]
[1725828751520,0.00081,54452.0,54445.0,0.36824636]
[1725828751734,0.00081,54452.0,54445.0,0.405271]
[1725828751998,0.00081,54452.0,54445.0,1.43383]
[1725828752907,0.00081,54452.0,54445.0,1.43583]
[1725828753130,0.00081,54452.0,54445.0,1.729704]
[1725828754252,0.00081,54452.0,54445.0,1.766704]
[1725828754759,0.00081,54452.0,54445.0,1.780704]
[1725828755026,0.15490137,54472.0,54445.0,1.780704]
[1725828755027,0.00094,54493.0,54483.0,0.03]
[1725828755270,0.00094,54493.0,54483.0,1.23401037]
[1725828755530,0.00094,54493.0,54483.0,1.13511037]
[1725828755778,0.00094,54493.0,54483.0,0.450503]
[1725828756463,0.00094,54493.0,54483.0,0.744172]
[1725828756710,0.00094,54493.0,54483.0,0.86673084]
[1725828757645,0.00094,54493.0,54483.0,0.88073084]
[1725828757856,0.00094,54493.0,54483.0,1.17439984]
[1725828758078,0.00094,54493.0,54483.0,0.88073084]
[1725828758391,0.00094,54493.0,54483.0,0.99053084]
[1725828758545,0.00094,54493.0,54483.0,0.99453084]
[1725828758760,0.00094,54493.0,54483.0,1.28819984]
[1725828758993,0.00094,54493.0,54483.0,1.30219984]
[1725828759233,0.00094,54493.0,54492.0,0.90979836]
[1725828759482,0.00094,54493.0,54492.0,1.2963992]
[1725828760379,0.00094,54493.0,54492.0,1.3163992]
[1725828761498,0.00094,54493.0,54492.0,1.4071992]
[1725828761734,0.00094,54493.0,54492.0,1.4211992]
[1725828761944,0.00094,54493.0,54492.0,1.7946202]
[1725828762171,0.00081,54494.0,54493.0,1.059652]
[1725828762387,0.00081,54501.0,54500.0,0.63811136]
[1725828762669,0.00081,54501.0,54500.0,0.93168836]
[1725828762878,0.00081,54501.0,54500.0,1.22526536]
[1725828763382,0.00081,54501.0,54500.0,1.51884236]
[1725828763605,0.00081,54501.0,54500.0,1.6707266]
[1725828763838,0.00081,54501.0,54500.0,1.3771496]
[1725828764048,0.00081,54501.0,54500.0,1.3911496]
[1725828764443,0.00081,54501.0,54500.0,1.3891496]
[1725828764774,0.00081,54501.0,54500.0,1.3691496]
[1725828764987,0.146739,54519.0,54513.0,0.146752]
[1725828765204,0.1,54518.0,54514.0,0.1614252]
[1725828765426,0.1,54518.0,54511.0,0.293518]
[1725828765628,0.1,54518.0,54514.0,0.146748]
[1725828766335,0.1,54519.0,54514.0,0.146748]
[1725828767418,0.1,54519.0,54514.0,0.012]
[1725828767640,0.146745,54517.0,54514.0,0.012]
[1725828767864,0.1638,54516.0,54514.0,0.012]
[1725828768090,0.310546,54516.0,54514.0,0.012]
[1725828768314,0.1638,54516.0,54514.0,0.012]
[1725828768538,0.1638,54516.0,54514.0,0.025]
[1725828768778,0.146748,54515.0,54514.0,0.013]
[1725828769010,0.1638,54516.0,54511.0,0.146759]
[1725828769230,0.7941446,54515.0,54514.0,0.025]
[1725828769463,0.733742,54515.0,54514.0,0.025]
[1725828769684,0.733742,54515.0,54514.0,0.014]
[1725828770370,0.14676,54511.0,54506.0,0.146772]
[1725828771114,0.293497,54515.0,54506.0,0.146772]
[1725828771302,0.146762,54510.0,54506.0,0.146772]
[1725828771512,0.293515,54512.0,54503.0,0.29356]
[1725828771716,0.146762,54510.0,54505.0,0.146773]
[1725828771953,0.146762,54510.0,54506.0,0.146771]
[1725828772182,0.146762,54510.0,54506.0,0.153771]
[1725828772403,0.440273,54512.0,54506.0,0.146771]
[1725828772617,0.146759,54511.0,54506.0,0.146771]
[1725828772841,0.02876711,54510.0,54506.0,0.146771]
[1725828773325,0.02876711,54510.0,54507.0,0.146769]
[1725828773548,0.02876711,54510.0,54506.0,0.09856304]
[1725828773763,0.02876711,54510.0,54507.0,0.146769]
[1725828775480,0.02876711,54510.0,54507.0,0.154769]
[1725828775692,0.02876711,54510.0,54507.0,0.153769]
[1725828776175,0.02876711,54510.0,54507.0,0.26248874]
[1725828776406,0.02876711,54510.0,54508.0,0.146767]
[1725828776638,0.02876711,54510.0,54507.0,0.11571974]
[1725828777302,0.02876711,54510.0,54507.0,0.25548874]
[1725828777581,0.02876711,54510.0,54508.0,0.008]
[1725828777802,0.537893,54509.0,54508.0,0.008]
[1725828778011,0.244364,54509.0,54508.0,0.008]
[1725828778245,0.537893,54509.0,54508.0,0.008]
[1725828778464,0.537893,54509.0,54508.0,0.016]
[1725828778690,0.537893,54509.0,54508.0,0.008]
[1725828778875,0.146771,54507.0,54503.0,0.14678]
[1725828779121,0.146771,54507.0,54503.0,0.2201726]
[1725828779335,0.146771,54507.0,54503.0,0.14678]
[1725828779793,0.0976,54509.0,54503.0,0.14678]
[1725828779794,0.146767,54508.0,54503.0,0.14678]
[1725828780010,0.244367,54509.0,54505.0,0.146773]
[1725828780247,0.0976,54509.0,54503.0,0.30556]
[1725828780452,0.0976,54509.0,54505.0,0.08996464]
[1725828780664,0.146768,54508.0,54505.0,0.08996464]
[1725828781593,0.146768,54508.0,54504.0,0.146778]
[1725828781836,0.146768,54508.0,54505.0,0.01]
[1725828782050,0.293525,54510.0,54504.0,0.146778]
[1725828782334,0.146768,54508.0,54504.0,0.146778]
[1725828782743,0.146768,54508.0,54505.0,0.011]
[1725828782992,0.39546121,54516.0,54505.0,0.011]
[1725828783197,0.516717,54506.0,54505.0,0.011]
[1725828783380,0.146776,54505.0,54501.0,0.146786]
[1725828783661,0.146776,54505.0,54504.0,0.01]
[1725828783909,0.0764,54506.0,54504.0,0.01]
[1725828784115,0.223174,54506.0,54501.0,0.146786]
[1725828784341,0.223174,54506.0,54505.0,0.001]
[1725828785676,0.223174,54506.0,54501.0,0.159786]
[1725828785881,0.223174,54506.0,54504.0,0.012]
[1725828786303,0.223174,54506.0,54501.0,0.221481]
[1725828786540,0.223174,54506.0,54505.0,0.013]
[1725828786996,0.266713,54508.0,54505.0,0.025]
[1725828787222,0.146773,54506.0,54505.0,0.025]
[1725828787885,0.146773,54506.0,54505.0,0.012]
[1725828788574,0.146773,54506.0,54501.0,0.221481]
[1725828788787,0.146773,54506.0,54501.0,0.234481]
[1725828788993,0.146773,54506.0,54505.0,0.01]
[1725828789444,0.146773,54506.0,54505.0,0.013]
[1725828789656,0.146773,54506.0,54501.0,0.233481]
[1725828789872,0.146773,54506.0,54502.0,0.146783]
[1725828790090,0.146773,54506.0,54502.0,0.2288475]
[1725828791013,0.146772,54507.0,54505.0,0.012]
[1725828792205,0.146772,54507.0,54505.0,0.024]
[1725828792422,0.146772,54507.0,54505.0,0.04928445]
[1725828793102,0.146772,54507.0,54505.0,0.03728445]
[1725828794444,0.146772,54507.0,54505.0,0.04828445]
[1725828794870,0.08066927,54510.0,54505.0,0.04828445]
[1725828795368,0.146768,54508.0,54505.0,0.04828445]
[1725828796061,0.146768,54508.0,54505.0,0.02528445]
[1725828796494,0.146768,54508.0,54505.0,0.03228445]
[1725828796745,0.22743327,54510.0,54505.0,0.17905945]
[1725828796954,0.146767,54508.0,54504.0,0.148403]
[1725828797189,0.146767,54508.0,54505.0,0.01]